[Event "*** Titled Tuesday Blitz"]
[Site "Chess.com"]
[Date "2020.04.21"]
[Round "3"]
[White "GeorgMeier"]
[Black "francyIM"]
[Result "1-0"]
[WhiteElo "3052"]
[BlackElo "2704"]
[TimeControl "180+1"]
[EndTime "10:28:43 PDT"]
[Termination "GeorgMeier won by resignation"]

1. Nf3 {[%clk 0:03:00.9]} 1... Nf6 {[%clk 0:02:51.4]} 2. g3 {[%clk 0:03:01]}
2... e6 {[%clk 0:02:47.1]} 3. Bg2 {[%clk 0:03:01.2]} 3... d5 {[%clk 0:02:47.1]}
4. O-O {[%clk 0:03:01.4]} 4... Be7 {[%clk 0:02:47.1]} 5. c4 {[%clk 0:02:49.6]}
5... O-O {[%clk 0:02:46.6]} 6. d4 {[%clk 0:02:48.6]} 6... dxc4 {[%clk
0:02:42.2]} 7. Qc2 {[%clk 0:02:45.3]} 7... a6 {[%clk 0:02:41.1]} 8. Qxc4 {[%clk
0:02:45.3]} 8... b5 {[%clk 0:02:40.6]} 9. Qc2 {[%clk 0:02:46.2]} 9... Bb7 {[%clk
0:02:40.9]} 10. Bg5 {[%clk 0:02:46.4]} 10... Be4 {[%clk 0:02:38]} 11. Qc1 {[%clk
0:02:46.1]} 11... Nbd7 {[%clk 0:02:37.3]} 12. Nbd2 {[%clk 0:02:45.9]} 12... Bb7
{[%clk 0:02:35.8]} 13. Nb3 {[%clk 0:02:41.2]} 13... h6 {[%clk 0:02:34.6]} 14.
Bxf6 {[%clk 0:02:41.3]} 14... Nxf6 {[%clk 0:02:33.5]} 15. Rd1 {[%clk 0:02:38]}
15... Bd5 {[%clk 0:02:32.9]} 16. Qc2 {[%clk 0:01:56]} 16... a5 {[%clk
0:02:29.4]} 17. a3 {[%clk 0:01:50.8]} 17... a4 {[%clk 0:02:25.8]} 18. Nc5 {[%clk
0:01:49.6]} 18... Bxc5 {[%clk 0:02:11]} 19. Qxc5 {[%clk 0:01:49.2]} 19... Ne4
{[%clk 0:01:53.9]} 20. Qb4 {[%clk 0:01:49.3]} 20... Qd6 {[%clk 0:01:50.3]} 21.
Ne5 {[%clk 0:01:43]} 21... Qxb4 {[%clk 0:01:49.2]} 22. axb4 {[%clk 0:01:43.9]}
22... Nd6 {[%clk 0:01:44.7]} 23. Rdc1 {[%clk 0:01:36.6]} 23... f6 {[%clk
0:01:42.3]} 24. Ng4 {[%clk 0:01:02.8]} 24... Nc4 {[%clk 0:01:38.4]} 25. Ne3
{[%clk 0:00:52.5]} 25... Bxg2 {[%clk 0:01:28.8]} 26. Nxc4 {[%clk 0:00:52.4]}
26... Bd5 {[%clk 0:01:23.4]} 27. Na5 {[%clk 0:00:40.4]} 27... Rfc8 {[%clk
0:01:18.2]} 28. Rc5 {[%clk 0:00:39.5]} 28... c6 {[%clk 0:00:58.6]} 29. Rac1
{[%clk 0:00:39.2]} 29... Rd8 {[%clk 0:00:58.3]} 30. f3 {[%clk 0:00:35.6]} 30...
f5 {[%clk 0:00:58]} 31. Kf2 {[%clk 0:00:35.8]} 31... Ra6 {[%clk 0:00:57.6]} 32.
Ke3 {[%clk 0:00:31.6]} 32... Rd6 {[%clk 0:00:34.1]} 33. Kf4 {[%clk 0:00:31.6]}
33... Kf7 {[%clk 0:00:33.3]} 34. e4 {[%clk 0:00:28.9]} 34... fxe4 {[%clk
0:00:29.7]} 35. fxe4 {[%clk 0:00:29.8]} 35... Bb3 {[%clk 0:00:29.8]} 36. Ke5
{[%clk 0:00:25.8]} 36... Rd7 {[%clk 0:00:27.4]} 37. Rxc6 {[%clk 0:00:23]} 37...
Ra8 {[%clk 0:00:27.2]} 38. Rc7 {[%clk 0:00:22.9]} 38... Rd8 {[%clk 0:00:27.1]}
39. Nc6 {[%clk 0:00:19]} 1-0

[Event "*** Titled Tuesday Blitz"]
[Site "Chess.com"]
[Date "2020.04.21"]
[Round "3"]
[White "Ind1anStar"]
[Black "FranciscodelaF"]
[Result "0-1"]
[WhiteElo "2608"]
[BlackElo "2424"]
[TimeControl "180+1"]
[EndTime "10:28:43 PDT"]
[Termination "FranciscodelaF won by resignation"]

1. c4 {[%clk 0:02:59.3]} 1... e6 {[%clk 0:02:56.3]} 2. Nf3 {[%clk 0:02:58.5]}
2... d5 {[%clk 0:02:56.8]} 3. e3 {[%clk 0:02:58]} 3... Nf6 {[%clk 0:02:56.3]} 4.
Nc3 {[%clk 0:02:56.4]} 4... Be7 {[%clk 0:02:53.1]} 5. b3 {[%clk 0:02:54.9]} 5...
O-O {[%clk 0:02:53]} 6. Bb2 {[%clk 0:02:55.2]} 6... b6 {[%clk 0:02:53.5]} 7. Be2
{[%clk 0:02:55.4]} 7... Bb7 {[%clk 0:02:53.6]} 8. O-O {[%clk 0:02:55.7]} 8... a6
{[%clk 0:02:53.8]} 9. d4 {[%clk 0:02:54.3]} 9... Nbd7 {[%clk 0:02:53]} 10. Rc1
{[%clk 0:02:53]} 10... Ne4 {[%clk 0:02:50.9]} 11. Ne5 {[%clk 0:02:45.7]} 11...
Nxc3 {[%clk 0:02:35.7]} 12. Bxc3 {[%clk 0:02:44.2]} 12... Nxe5 {[%clk 0:02:36]}
13. dxe5 {[%clk 0:02:42.4]} 13... Ba3 {[%clk 0:02:09]} 14. Rc2 {[%clk
0:02:32.4]} 14... dxc4 {[%clk 0:02:09.2]} 15. Bxc4 {[%clk 0:02:26]} 15... Qg5
{[%clk 0:02:05.7]} 16. f4 {[%clk 0:02:23.7]} 16... Qf5 {[%clk 0:02:01.6]} 17.
Rd2 {[%clk 0:01:39]} 17... Bc5 {[%clk 0:01:57.9]} 18. Bd4 {[%clk 0:01:38.2]}
18... Be7 {[%clk 0:01:17.4]} 19. Be2 {[%clk 0:01:00]} 19... c5 {[%clk
0:01:06.6]} 20. Bg4 {[%clk 0:00:59.9]} 20... Qg6 {[%clk 0:01:02.9]} 21. Bc3
{[%clk 0:00:51.8]} 21... Rad8 {[%clk 0:01:02]} 22. Qe2 {[%clk 0:00:44.8]} 22...
Rxd2 {[%clk 0:01:01.4]} 23. Bxd2 {[%clk 0:00:45.7]} 23... Rd8 {[%clk 0:00:59.8]}
24. Bc1 {[%clk 0:00:40.1]} 24... Be4 {[%clk 0:00:57.3]} 25. Bh5 {[%clk
0:00:34.8]} 25... Qh6 {[%clk 0:00:55]} 26. Rd1 {[%clk 0:00:32.1]} 26... Rxd1+
{[%clk 0:00:44.6]} 27. Qxd1 {[%clk 0:00:33]} 27... g6 {[%clk 0:00:41.6]} 28. Be2
{[%clk 0:00:31.7]} 28... b5 {[%clk 0:00:33.7]} 29. Bd2 {[%clk 0:00:29.1]} 29...
Qf8 {[%clk 0:00:33.7]} 30. Ba5 {[%clk 0:00:28.7]} 30... Qc8 {[%clk 0:00:32.7]}
31. Qd2 {[%clk 0:00:19]} 31... Bd5 {[%clk 0:00:32.5]} 32. Bd3 {[%clk 0:00:18.2]}
32... Qc6 {[%clk 0:00:32.2]} 33. Qc2 {[%clk 0:00:16.4]} 33... c4 {[%clk
0:00:32.7]} 34. bxc4 {[%clk 0:00:15.2]} 34... bxc4 {[%clk 0:00:33.6]} 35. Bf1
{[%clk 0:00:15.4]} 35... Qb5 {[%clk 0:00:33.6]} 36. Bc3 {[%clk 0:00:15.5]} 36...
a5 {[%clk 0:00:33.7]} 37. e4 {[%clk 0:00:15.7]} 37... Bb7 {[%clk 0:00:28.3]} 38.
Kh1 {[%clk 0:00:16.3]} 38... Bb4 {[%clk 0:00:27.7]} 39. Bxb4 {[%clk 0:00:14.4]}
39... Qxb4 {[%clk 0:00:27.5]} 40. Qxc4 {[%clk 0:00:15.1]} 40... Qxc4 {[%clk
0:00:27]} 41. Bxc4 {[%clk 0:00:16]} 41... Bxe4 {[%clk 0:00:27.6]} 42. Kg1 {[%clk
0:00:16.7]} 42... Kf8 {[%clk 0:00:28.1]} 43. Kf2 {[%clk 0:00:17.1]} 43... Bd5
{[%clk 0:00:27.2]} 44. g3 {[%clk 0:00:17.8]} 44... Bxc4 {[%clk 0:00:27.3]} 0-1

[Event "*** Titled Tuesday Blitz"]
[Site "Chess.com"]
[Date "2020.04.21"]
[Round "3"]
[White "Tonychess32"]
[Black "Alexander_Donchenko"]
[Result "0-1"]
[WhiteElo "2615"]
[BlackElo "2804"]
[TimeControl "180+1"]
[EndTime "10:28:44 PDT"]
[Termination "Alexander_Donchenko won by resignation"]

1. e4 {[%clk 0:03:00.9]} 1... c5 {[%clk 0:02:59]} 2. Nf3 {[%clk 0:03:00.2]} 2...
e6 {[%clk 0:02:59.2]} 3. c3 {[%clk 0:02:59.9]} 3... Nf6 {[%clk 0:02:58.5]} 4. e5
{[%clk 0:03:00]} 4... Nd5 {[%clk 0:02:59.2]} 5. d4 {[%clk 0:03:00.6]} 5... cxd4
{[%clk 0:02:59.8]} 6. cxd4 {[%clk 0:03:01.5]} 6... d6 {[%clk 0:03:00.3]} 7. exd6
{[%clk 0:03:02.1]} 7... Bxd6 {[%clk 0:03:00]} 8. Bd3 {[%clk 0:03:02.5]} 8... Nc6
{[%clk 0:02:59.7]} 9. O-O {[%clk 0:03:02.7]} 9... O-O {[%clk 0:02:58.4]} 10. Nc3
{[%clk 0:03:01.7]} 10... Nxc3 {[%clk 0:02:54.9]} 11. bxc3 {[%clk 0:03:02.6]}
11... b6 {[%clk 0:02:51.8]} 12. Bxh7+ {[%clk 0:02:16.7]} 12... Kxh7 {[%clk
0:02:51.6]} 13. Ng5+ {[%clk 0:02:17]} 13... Kg6 {[%clk 0:02:51.4]} 14. Qg4
{[%clk 0:02:15.1]} 14... f5 {[%clk 0:02:50.7]} 15. Qf3 {[%clk 0:02:07.4]} 15...
Qc7 {[%clk 0:02:23.2]} 16. Qh3 {[%clk 0:02:00.5]} 16... Bd7 {[%clk 0:02:05.9]}
17. Qh7+ {[%clk 0:01:50]} 17... Kf6 {[%clk 0:02:06.4]} 18. Qh5 {[%clk 0:01:11]}
18... Bxh2+ {[%clk 0:01:59.5]} 19. Kh1 {[%clk 0:00:55.7]} 19... Bf4 {[%clk
0:01:40.5]} 20. Nh7+ {[%clk 0:00:52.8]} 20... Ke7 {[%clk 0:01:40.9]} 21. Qh4+
{[%clk 0:00:46.5]} 21... g5 {[%clk 0:01:41.2]} 22. Nxg5 {[%clk 0:00:43]} 22...
Bxc1 {[%clk 0:01:27.6]} 23. Nh7+ {[%clk 0:00:20]} 23... Kd6 {[%clk 0:01:01.6]}
24. Nxf8 {[%clk 0:00:17.6]} 24... Rxf8 {[%clk 0:00:49.7]} 25. Raxc1 {[%clk
0:00:17.8]} 25... Qd8 {[%clk 0:00:50.3]} 26. Qf4+ {[%clk 0:00:14.5]} 26... Ke7
{[%clk 0:00:50.7]} 27. Rfe1 {[%clk 0:00:12.4]} 27... Rh8+ {[%clk 0:00:45.7]} 28.
Kg1 {[%clk 0:00:12.7]} 28... Kf7 {[%clk 0:00:41.7]} 29. g3 {[%clk 0:00:10.2]}
29... Ne7 {[%clk 0:00:38.3]} 30. c4 {[%clk 0:00:08.9]} 30... Ng6 {[%clk
0:00:33.8]} 31. Qf3 {[%clk 0:00:09.1]} 31... Qg5 {[%clk 0:00:20.1]} 32. d5
{[%clk 0:00:09]} 32... e5 {[%clk 0:00:20.6]} 33. Rcd1 {[%clk 0:00:06.9]} 33...
Nh4 {[%clk 0:00:13.8]} 34. Qe2 {[%clk 0:00:04.5]} 34... e4 {[%clk 0:00:13.7]}
35. Qc2 {[%clk 0:00:04.4]} 35... Nf3+ {[%clk 0:00:13.6]} 36. Kf1 {[%clk
0:00:04.4]} 36... Rh1+ {[%clk 0:00:12.9]} 37. Ke2 {[%clk 0:00:04.8]} 37... Rxe1+
{[%clk 0:00:13]} 38. Rxe1 {[%clk 0:00:05.2]} 38... Nd4+ {[%clk 0:00:13.7]} 0-1

[Event "*** Titled Tuesday Blitz"]
[Site "Chess.com"]
[Date "2020.04.21"]
[Round "3"]
[White "Neimar24"]
[Black "obliviate12"]
[Result "0-1"]
[WhiteElo "2559"]
[BlackElo "2774"]
[TimeControl "180+1"]
[EndTime "10:28:45 PDT"]
[Termination "obliviate12 won by resignation"]

1. e4 {[%clk 0:02:58.9]} 1... c5 {[%clk 0:03:00.1]} 2. Nf3 {[%clk 0:02:58.3]}
2... d6 {[%clk 0:03:00.3]} 3. d4 {[%clk 0:02:56.9]} 3... cxd4 {[%clk 0:03:01.2]}
4. Nxd4 {[%clk 0:02:57.3]} 4... Nf6 {[%clk 0:03:01.6]} 5. Nc3 {[%clk 0:02:57.8]}
5... a6 {[%clk 0:03:02]} 6. Qe2 {[%clk 0:02:58.1]} 6... b5 {[%clk 0:02:47.6]} 7.
f4 {[%clk 0:02:51.4]} 7... Bb7 {[%clk 0:02:43.3]} 8. a3 {[%clk 0:02:50.4]} 8...
e5 {[%clk 0:02:20.3]} 9. Nf5 {[%clk 0:02:44]} 9... g6 {[%clk 0:02:15.2]} 10. Ng3
{[%clk 0:02:21.5]} 10... Nbd7 {[%clk 0:02:12]} 11. Be3 {[%clk 0:02:17.1]} 11...
Rc8 {[%clk 0:01:55.8]} 12. Qd2 {[%clk 0:02:10.5]} 12... h5 {[%clk 0:01:38.5]}
13. Bd3 {[%clk 0:02:09.4]} 13... Ng4 {[%clk 0:01:33.4]} 14. Nf1 {[%clk
0:01:42.8]} 14... Bh6 {[%clk 0:01:23.7]} 15. g3 {[%clk 0:01:37]} 15... Nxe3
{[%clk 0:01:18]} 16. Nxe3 {[%clk 0:01:34.8]} 16... exf4 {[%clk 0:01:15.6]} 17.
gxf4 {[%clk 0:01:28.5]} 17... Qh4+ {[%clk 0:01:14.8]} 18. Qf2 {[%clk 0:01:28.5]}
18... Qxf4 {[%clk 0:01:09.5]} 19. Ned5 {[%clk 0:01:19.2]} 19... Qe5 {[%clk
0:00:52.1]} 20. O-O {[%clk 0:01:04.1]} 20... O-O {[%clk 0:00:51.8]} 21. Qg2
{[%clk 0:00:59.7]} 21... Bg7 {[%clk 0:00:42.3]} 22. Rae1 {[%clk 0:00:57]} 22...
Rfe8 {[%clk 0:00:36.2]} 23. Kh1 {[%clk 0:00:55.4]} 23... Qd4 {[%clk 0:00:33.5]}
24. Rf3 {[%clk 0:00:52.4]} 24... Ne5 {[%clk 0:00:32.6]} 25. Rg3 {[%clk
0:00:52.5]} 25... Bxd5 {[%clk 0:00:22.1]} 26. Nxd5 {[%clk 0:00:51.8]} 26... Qxb2
{[%clk 0:00:22.3]} 27. Rf1 {[%clk 0:00:46.8]} 27... Nxd3 {[%clk 0:00:19.2]} 28.
cxd3 {[%clk 0:00:46]} 28... Rc2 {[%clk 0:00:18.8]} 29. Qh3 {[%clk 0:00:45]}
29... Be5 {[%clk 0:00:18.8]} 30. Qd7 {[%clk 0:00:21.2]} 30... Rf8 {[%clk
0:00:17.7]} 31. Rxg6+ {[%clk 0:00:19.6]} 31... Kh8 {[%clk 0:00:16.6]} 32. Rh6+
{[%clk 0:00:17.7]} 32... Kg7 {[%clk 0:00:16]} 33. Rh7+ {[%clk 0:00:15.3]} 33...
Kxh7 {[%clk 0:00:15]} 34. Qf5+ {[%clk 0:00:15.7]} 34... Kh6 {[%clk 0:00:11.5]}
0-1

[Event "*** Titled Tuesday Blitz"]
[Site "Chess.com"]
[Date "2020.04.21"]
[Round "3"]
[White "chenxiaoyuer"]
[Black "Manukyan_Artak"]
[Result "0-1"]
[WhiteElo "2116"]
[BlackElo "2350"]
[TimeControl "180+1"]
[EndTime "10:28:45 PDT"]
[Termination "Manukyan_Artak won by checkmate"]

1. e4 {[%clk 0:03:00.9]} 1... c5 {[%clk 0:02:59.3]} 2. Nf3 {[%clk 0:02:59.5]}
2... a6 {[%clk 0:02:59.6]} 3. g3 {[%clk 0:02:58]} 3... d6 {[%clk 0:02:59.3]} 4.
Bg2 {[%clk 0:02:55.6]} 4... Nc6 {[%clk 0:02:59.5]} 5. O-O {[%clk 0:02:55]} 5...
Nf6 {[%clk 0:02:58.5]} 6. d3 {[%clk 0:02:54.1]} 6... g6 {[%clk 0:02:58.3]} 7.
Nbd2 {[%clk 0:02:52.2]} 7... Bg7 {[%clk 0:02:58.5]} 8. Re1 {[%clk 0:02:50.5]}
8... e5 {[%clk 0:02:55.4]} 9. Nf1 {[%clk 0:02:49.5]} 9... O-O {[%clk 0:02:54.6]}
10. Bg5 {[%clk 0:02:47.2]} 10... h6 {[%clk 0:02:54]} 11. Bxf6 {[%clk 0:02:45.4]}
11... Bxf6 {[%clk 0:02:54.9]} 12. Ne3 {[%clk 0:02:43.8]} 12... Be6 {[%clk
0:02:52.9]} 13. Nd2 {[%clk 0:02:38.2]} 13... b5 {[%clk 0:02:48.5]} 14. h4 {[%clk
0:02:36.4]} 14... h5 {[%clk 0:02:43.9]} 15. c3 {[%clk 0:02:25.8]} 15... Qd7
{[%clk 0:02:39.7]} 16. Kh2 {[%clk 0:02:10.2]} 16... Bg7 {[%clk 0:02:36.2]} 17.
a4 {[%clk 0:02:06.9]} 17... Kh7 {[%clk 0:02:27.7]} 18. Qc2 {[%clk 0:01:56.8]}
18... Bh6 {[%clk 0:02:18.4]} 19. Nf3 {[%clk 0:01:52.8]} 19... b4 {[%clk
0:02:06.4]} 20. c4 {[%clk 0:01:28.3]} 20... Bg4 {[%clk 0:01:58.5]} 21. Nd5
{[%clk 0:01:10.7]} 21... Qd8 {[%clk 0:01:56.3]} 22. Ne3 {[%clk 0:00:47.7]} 22...
Bxf3 {[%clk 0:01:47.9]} 23. Bxf3 {[%clk 0:00:47.4]} 23... Nd4 {[%clk 0:01:48.8]}
24. Qd1 {[%clk 0:00:46.6]} 24... b3 {[%clk 0:01:42.9]} 25. Nd5 {[%clk
0:00:39.4]} 25... Nc2 {[%clk 0:01:37.5]} 26. Re2 {[%clk 0:00:33.6]} 26... Nxa1
{[%clk 0:01:36.7]} 27. Qxa1 {[%clk 0:00:34.5]} 27... Qa5 {[%clk 0:01:31.9]} 28.
Qa3 {[%clk 0:00:24.1]} 28... Rab8 {[%clk 0:01:31.3]} 29. Nf6+ {[%clk 0:00:19.8]}
29... Kg7 {[%clk 0:01:29.1]} 30. Nd7 {[%clk 0:00:20]} 30... Rb4 {[%clk
0:01:27.8]} 31. Nxf8 {[%clk 0:00:18.3]} 31... Kxf8 {[%clk 0:01:28.7]} 32. Qa1
{[%clk 0:00:17]} 32... Rxa4 {[%clk 0:01:27.2]} 33. Qd1 {[%clk 0:00:16.5]} 33...
Ra1 {[%clk 0:01:26.3]} 34. Qxb3 {[%clk 0:00:15.7]} 34... Kg7 {[%clk 0:01:24]}
35. Qb7 {[%clk 0:00:14.8]} 35... Re1 {[%clk 0:01:18.7]} 36. Kg2 {[%clk
0:00:10.9]} 36... Rxe2 {[%clk 0:01:17.7]} 37. Bxe2 {[%clk 0:00:10.8]} 37... Qd2
{[%clk 0:01:16.7]} 38. Kf1 {[%clk 0:00:08.9]} 38... Qc1+ {[%clk 0:01:10.2]} 39.
Kg2 {[%clk 0:00:08.6]} 39... a5 {[%clk 0:01:01.3]} 40. Qb6 {[%clk 0:00:07.3]}
40... Bd2 {[%clk 0:00:54.6]} 41. Qxd6 {[%clk 0:00:05.1]} 41... Qxb2 {[%clk
0:00:54.7]} 42. Qxc5 {[%clk 0:00:04.8]} 42... a4 {[%clk 0:00:52.5]} 43. Bf3
{[%clk 0:00:03.8]} 43... a3 {[%clk 0:00:51.9]} 44. Qd5 {[%clk 0:00:03.8]} 44...
a2 {[%clk 0:00:46.6]} 45. c5 {[%clk 0:00:04]} 45... a1=Q {[%clk 0:00:46.3]} 46.
c6 {[%clk 0:00:04.9]} 46... Be3 {[%clk 0:00:44.7]} 47. c7 {[%clk 0:00:04.3]}
47... Qxf2+ {[%clk 0:00:44.7]} 48. Kh3 {[%clk 0:00:04.4]} 48... Qaf1+ {[%clk
0:00:41.6]} 49. Bg2 {[%clk 0:00:04.3]} 49... Q1xg2# {[%clk 0:00:41.9]} 0-1

[Event "*** Titled Tuesday Blitz"]
[Site "Chess.com"]
[Date "2020.04.21"]
[Round "3"]
[White "Oligan22"]
[Black "IsikCan"]
[Result "1-0"]
[WhiteElo "2431"]
[BlackElo "2634"]
[TimeControl "180+1"]
[EndTime "10:28:48 PDT"]
[Termination "Oligan22 won on time"]

1. e4 {[%clk 0:03:00.9]} 1... c6 {[%clk 0:03:00]} 2. Nc3 {[%clk 0:02:59.5]} 2...
d5 {[%clk 0:02:59.9]} 3. Nf3 {[%clk 0:03:00.1]} 3... Nf6 {[%clk 0:02:58.3]} 4.
e5 {[%clk 0:02:59.1]} 4... Ne4 {[%clk 0:02:58.7]} 5. Ne2 {[%clk 0:02:59]} 5...
Qb6 {[%clk 0:02:58.8]} 6. d4 {[%clk 0:02:59.4]} 6... e6 {[%clk 0:02:59.4]} 7.
Ng3 {[%clk 0:02:47.7]} 7... c5 {[%clk 0:02:59.6]} 8. c3 {[%clk 0:02:46.8]} 8...
cxd4 {[%clk 0:02:55.4]} 9. Nxe4 {[%clk 0:02:20.2]} 9... dxe4 {[%clk 0:02:56.3]}
10. Nxd4 {[%clk 0:02:20.4]} 10... Nc6 {[%clk 0:02:54.2]} 11. Bb5 {[%clk
0:02:18.1]} 11... Bd7 {[%clk 0:02:37.7]} 12. Bxc6 {[%clk 0:02:17.8]} 12... Bxc6
{[%clk 0:02:38.6]} 13. Nxc6 {[%clk 0:02:01.2]} 13... Qxc6 {[%clk 0:01:47.4]} 14.
O-O {[%clk 0:01:47]} 14... Bc5 {[%clk 0:01:22.8]} 15. Qg4 {[%clk 0:01:42.4]}
15... O-O-O {[%clk 0:01:22.3]} 16. Bg5 {[%clk 0:01:32.5]} 16... Rd3 {[%clk
0:01:11.7]} 17. Rae1 {[%clk 0:01:23]} 17... h6 {[%clk 0:01:11.2]} 18. Be3 {[%clk
0:01:12]} 18... g5 {[%clk 0:00:25.9]} 19. Bxc5 {[%clk 0:01:08.4]} 19... Qxc5
{[%clk 0:00:26.8]} 20. Rxe4 {[%clk 0:01:07]} 20... Rhd8 {[%clk 0:00:27.5]} 21.
Rc4 {[%clk 0:01:06.8]} 21... R3d5 {[%clk 0:00:23.9]} 22. Rxc5+ {[%clk
0:01:06.7]} 22... Rxc5 {[%clk 0:00:24.8]} 23. f4 {[%clk 0:01:04.2]} 23... Rd7
{[%clk 0:00:23]} 24. fxg5 {[%clk 0:00:59.8]} 24... hxg5 {[%clk 0:00:23.9]} 25.
Qxg5 {[%clk 0:01:00.2]} 25... Rcd5 {[%clk 0:00:24.4]} 26. h4 {[%clk 0:00:58.8]}
26... Rd2 {[%clk 0:00:22.8]} 27. Rf2 {[%clk 0:00:52.3]} 27... Rd1+ {[%clk
0:00:20.4]} 28. Kh2 {[%clk 0:00:52.2]} 28... Re1 {[%clk 0:00:19.9]} 29. h5
{[%clk 0:00:51.3]} 29... Rdd1 {[%clk 0:00:19.7]} 30. Rxf7 {[%clk 0:00:46.9]}
30... Rh1+ {[%clk 0:00:19]} 31. Kg3 {[%clk 0:00:47.3]} 31... Rd3+ {[%clk
0:00:19.1]} 32. Rf3 {[%clk 0:00:47.4]} 32... Rd8 {[%clk 0:00:18.2]} 33. h6
{[%clk 0:00:41]} 33... Rh8 {[%clk 0:00:17.1]} 34. Rf6 {[%clk 0:00:40.3]} 34...
Rd8 {[%clk 0:00:13.9]} 35. Qg7 {[%clk 0:00:35.1]} 35... Rd3+ {[%clk 0:00:12.9]}
36. Rf3 {[%clk 0:00:34.8]} 36... Rd7 {[%clk 0:00:11]} 37. Rf7 {[%clk 0:00:26.8]}
37... Rd3+ {[%clk 0:00:08.8]} 38. Kf2 {[%clk 0:00:26.9]} 38... Rd2+ {[%clk
0:00:05.8]} 39. Ke3 {[%clk 0:00:27.3]} 1-0

[Event "*** Titled Tuesday Blitz"]
[Site "Chess.com"]
[Date "2020.04.21"]
[Round "3"]
[White "Angel_Hranitel_37"]
[Black "garfield_pg"]
[Result "1-0"]
[WhiteElo "2390"]
[BlackElo "2198"]
[TimeControl "180+1"]
[EndTime "10:28:48 PDT"]
[Termination "Angel_Hranitel_37 won on time"]

1. d4 {[%clk 0:03:00.9]} 1... Nf6 {[%clk 0:02:59.5]} 2. Nf3 {[%clk 0:02:59.8]}
2... g6 {[%clk 0:02:59.2]} 3. g3 {[%clk 0:03:00.7]} 3... Bg7 {[%clk 0:02:59.9]}
4. Bg2 {[%clk 0:03:01.6]} 4... O-O {[%clk 0:03:00.4]} 5. O-O {[%clk 0:03:02.5]}
5... c5 {[%clk 0:03:00.7]} 6. dxc5 {[%clk 0:03:02.3]} 6... Na6 {[%clk
0:03:00.1]} 7. Bg5 {[%clk 0:02:59.5]} 7... Nxc5 {[%clk 0:02:59.4]} 8. Qc1 {[%clk
0:02:58]} 8... Qb6 {[%clk 0:02:58.1]} 9. c3 {[%clk 0:02:53.7]} 9... d6 {[%clk
0:02:54.9]} 10. Na3 {[%clk 0:02:53.2]} 10... Be6 {[%clk 0:02:49.6]} 11. Nd4
{[%clk 0:02:50]} 11... Rfc8 {[%clk 0:02:43.2]} 12. Nxe6 {[%clk 0:02:38.5]} 12...
Nxe6 {[%clk 0:02:42.3]} 13. Be3 {[%clk 0:02:39.4]} 13... Qc7 {[%clk 0:02:29]}
14. Nb5 {[%clk 0:02:35.8]} 14... Qb8 {[%clk 0:02:28.6]} 15. Rd1 {[%clk
0:02:27.3]} 15... a6 {[%clk 0:02:27.2]} 16. Nd4 {[%clk 0:02:27.3]} 16... Nxd4
{[%clk 0:02:22.8]} 17. Bxd4 {[%clk 0:02:28.2]} 17... Qc7 {[%clk 0:02:19]} 18.
Qc2 {[%clk 0:02:24]} 18... Rab8 {[%clk 0:02:18]} 19. Qb3 {[%clk 0:02:22.4]}
19... b5 {[%clk 0:02:17.2]} 20. e4 {[%clk 0:02:17.4]} 20... Qc4 {[%clk
0:02:09.7]} 21. Qa3 {[%clk 0:02:03.4]} 21... b4 {[%clk 0:01:59.7]} 22. cxb4
{[%clk 0:01:53.2]} 22... Rxb4 {[%clk 0:02:00.6]} 23. Bf1 {[%clk 0:01:49.5]}
23... Ra4 {[%clk 0:01:10.3]} 24. Bxc4 {[%clk 0:01:43]} 24... Rxa3 {[%clk
0:01:09.8]} 25. Bxf7+ {[%clk 0:01:37.1]} 25... Kxf7 {[%clk 0:01:10.7]} 26. bxa3
{[%clk 0:01:37.7]} 26... Nxe4 {[%clk 0:01:09.7]} 27. Bxg7 {[%clk 0:01:34.1]}
27... Kxg7 {[%clk 0:01:10.6]} 28. Kf1 {[%clk 0:01:24.6]} 28... Rc2 {[%clk
0:00:59.9]} 29. Re1 {[%clk 0:01:03.2]} 29... Rc4 {[%clk 0:00:37.4]} 30. Re2
{[%clk 0:00:46.5]} 30... e5 {[%clk 0:00:17.5]} 31. f3 {[%clk 0:00:29.7]} 31...
Nc5 {[%clk 0:00:12.9]} 32. Rd1 {[%clk 0:00:26]} 32... Nb7 {[%clk 0:00:03.9]} 33.
Rb2 {[%clk 0:00:25.3]} 33... Rc7 {[%clk 0:00:03.3]} 34. Rb6 {[%clk 0:00:22.9]}
34... a5 {[%clk 0:00:03.3]} 35. Rdb1 {[%clk 0:00:22.3]} 35... Nc5 {[%clk
0:00:02.7]} 36. Rxd6 {[%clk 0:00:21.8]} 36... Re7 {[%clk 0:00:01.2]} 37. Rbd1
{[%clk 0:00:19.8]} 1-0

[Event "*** Titled Tuesday Blitz"]
[Site "Chess.com"]
[Date "2020.04.21"]
[Round "3"]
[White "asms9699"]
[Black "Richarzard69"]
[Result "1-0"]
[WhiteElo "2623"]
[BlackElo "2256"]
[TimeControl "180+1"]
[EndTime "10:28:49 PDT"]
[Termination "asms9699 won on time"]

1. c4 {[%clk 0:03:00.9]} 1... Nf6 {[%clk 0:02:55.3]} 2. g3 {[%clk 0:03:01.5]}
2... c5 {[%clk 0:02:52.4]} 3. Bg2 {[%clk 0:03:02]} 3... g6 {[%clk 0:02:51.8]} 4.
Nc3 {[%clk 0:03:01.8]} 4... Bg7 {[%clk 0:02:51]} 5. Nf3 {[%clk 0:03:02.5]} 5...
Nc6 {[%clk 0:02:47.5]} 6. O-O {[%clk 0:03:02.7]} 6... O-O {[%clk 0:02:44.3]} 7.
d4 {[%clk 0:03:03.2]} 7... cxd4 {[%clk 0:02:30.7]} 8. Nxd4 {[%clk 0:03:04.1]}
8... Ng4 {[%clk 0:02:26.4]} 9. Nc2 {[%clk 0:03:01.7]} 9... d6 {[%clk 0:02:24.5]}
10. Bd2 {[%clk 0:03:00.8]} 10... Bd7 {[%clk 0:02:08.7]} 11. b3 {[%clk
0:03:00.5]} 11... a6 {[%clk 0:02:04.9]} 12. Rc1 {[%clk 0:03:00.4]} 12... Rb8
{[%clk 0:02:04.5]} 13. h3 {[%clk 0:02:59.8]} 13... Nf6 {[%clk 0:02:02.8]} 14.
Ne3 {[%clk 0:02:59.8]} 14... b5 {[%clk 0:02:00.8]} 15. Ncd5 {[%clk 0:02:57.6]}
15... bxc4 {[%clk 0:01:42.3]} 16. Rxc4 {[%clk 0:02:50.3]} 16... Nxd5 {[%clk
0:01:38.6]} 17. Nxd5 {[%clk 0:02:51.2]} 17... e6 {[%clk 0:01:31.3]} 18. Ne3
{[%clk 0:02:33.6]} 18... d5 {[%clk 0:01:31.2]} 19. Rc1 {[%clk 0:02:33.9]} 19...
Qe7 {[%clk 0:01:17.9]} 20. Qc2 {[%clk 0:02:20.9]} 20... Rfc8 {[%clk 0:01:17.1]}
21. Qb1 {[%clk 0:02:19.1]} 21... Qa3 {[%clk 0:01:12.5]} 22. Nc2 {[%clk
0:02:07.4]} 22... Qe7 {[%clk 0:01:06]} 23. Rfd1 {[%clk 0:02:06.5]} 23... a5
{[%clk 0:01:02.5]} 24. a3 {[%clk 0:01:53.2]} 24... Rb7 {[%clk 0:00:52.2]} 25. b4
{[%clk 0:01:43.5]} 25... axb4 {[%clk 0:00:50.7]} 26. axb4 {[%clk 0:01:44.4]}
26... Rcb8 {[%clk 0:00:49.1]} 27. Qa2 {[%clk 0:01:35.1]} 27... Ne5 {[%clk
0:00:40.6]} 28. Bf4 {[%clk 0:01:32.6]} 28... g5 {[%clk 0:00:40.2]} 29. Be3
{[%clk 0:01:25.5]} 29... Nc4 {[%clk 0:00:35.2]} 30. Bd4 {[%clk 0:01:23.4]} 30...
f6 {[%clk 0:00:20.7]} 31. Bc5 {[%clk 0:01:20.6]} 31... Qe8 {[%clk 0:00:18.6]}
32. Rxd5 {[%clk 0:01:15]} 32... exd5 {[%clk 0:00:17.6]} 33. Bxd5+ {[%clk
0:01:15.9]} 33... Be6 {[%clk 0:00:15.8]} 34. Bxc4 {[%clk 0:01:14.8]} 34... Bxc4
{[%clk 0:00:11.7]} 35. Qxc4+ {[%clk 0:01:15.7]} 35... Qf7 {[%clk 0:00:11.8]} 36.
Qd3 {[%clk 0:01:04.2]} 36... f5 {[%clk 0:00:12.1]} 37. Ne3 {[%clk 0:01:01.8]}
37... f4 {[%clk 0:00:11]} 38. Nc4 {[%clk 0:00:56.1]} 38... fxg3 {[%clk
0:00:10.9]} 39. Qxg3 {[%clk 0:00:57]} 39... Qd5 {[%clk 0:00:09.7]} 40. e4 {[%clk
0:00:41.5]} 40... Qxe4 {[%clk 0:00:07.8]} 41. Nd6 {[%clk 0:00:41.3]} 41... Qg6
{[%clk 0:00:03.8]} 42. Nxb7 {[%clk 0:00:39.9]} 1-0